[Event "TUR-ch Youth U17 2019"]
[Site "Belek"]
[Date "2019.01.21"]
[Round "3"]
[White "Aytekin, Murat Eren"]
[Black "Sekerci, Berkin"]
[Result "1-0"]
[ECO "D85"]
[WhiteElo "2163"]
[BlackElo "1791"]
[Annotator "NA"]
[PlyCount "89"]
[EventDate "2019.01.20"]
[EventType "swiss"]
[EventCountry "TUR"]
[SourceTitle "playchess.com"]
[Source "ChessBase"]
[SourceQuality "1"]
[TimeControl "5400+30"]

1. d4 {[%emt 0:00:30]} Nf6 {[%emt 0:00:30]} 2. c4 {[%emt 0:00:30]} g6 {[%emt 0:00:30]} 3. Nc3 {[%emt 0:00:30]} d5 {[%emt 0:00:30]} 4. cxd5 {[%emt 0:00:30]} Nxd5 {[%emt 0:00:30]} 5. e4 {[%emt 0:00:30]} Nxc3 {[%emt 0:00:30]} 6. bxc3 {[%emt 0:00:30]} Bg7 {[%emt 0:00:00]} 7. Nf3 {[%emt 0:00:00]} c5 {[%emt 0:00:00]} 8. Rb1 {[%emt 0:00:00]} cxd4 {[%emt 0:00:30]} 9. cxd4 {[%emt 0:00:00]} Nc6 {[%emt 0:03:30] D85: Exchange Grünfeld: Unusual White 7th moves and lines with 7 Nf3} (9... O-O 10. Be2 Qa5+ 11. Qd2 Qxd2+ 12. Bxd2 b6 13. O-O Bb7 14. d5 Na6 15. Rfc1 Rac8 16. Be3 Rfd8 17. Nd4 Nc5 18. Bg4 f5 19. exf5 Bxd4 20. Bxd4 Rxd5 21. Be3 gxf5 22. Bf3 Ne4 23. Rxc8+ Bxc8 24. Rc1 Be6 25. Rc7 Rd7 26. Rxd7 Bxd7 27. Bxe4 fxe4 {½-½ (27) Diu,V (2426)-Nguyen,V (2335) Hanoi 2018}) 10. d5 {[%emt 0:01:00]} Ne5 {[%emt 0:02:30]} 11. Nxe5 {[%emt 0:01:30]} Bxe5 {[%emt 0:00:30]} 12. Bb5+ {[%emt 0:01:30]} Bd7 {[%emt 0:00:30]} 13. O-O {[%emt 0:00:30]} Bg7 $146 {[%emt 0:00:30]} ({Predecessor:} 13... O-O 14. Be2 b6 15. Be3 e6 16. f4 Bg7 17. Bf3 exd5 18. exd5 {1-0 (68) Yu,K (1960)-Saif,M (1621) Al Ain 2013}) 14. Qa4 {[%emt 0:09:30]} b6 {[%emt 0:03:30]} 15. Ba3 {[%emt 0:02:30]} Bxb5 {[%emt 0:00:30]} 16. Qxb5+ {[%emt 0:00:30]} Qd7 {[%emt 0:00:30]} 17. Qb4 {[%emt 0:00:30]} O-O {[%emt 0:02:30]} (17... Be5 $1 $14) 18. Qxe7 {[%emt 0:02:30]} Qxe7 {[%emt 0:00:30]} 19. Bxe7 {[%emt 0:00:30]} Rfe8 {[%emt 0:00:00]} 20. d6 {[%emt 0:00:30]} Bf8 {[%emt 0:00:00]} 21. Bxf8 {[%emt 0:00:30]} Kxf8 {[%emt 0:04:30]} 22. Rfe1 {[%emt 0:02:30]} Re6 {[%emt 0:04:30]} 23. Rbd1 {[%emt 0:10:30]} f6 {[%emt 0:04:30]} 24. f4 {[%emt 0:04:30]} Ke8 {[%emt 0:01:30]} 25. e5 {[%emt 0:04:30]} Kd7 {[%emt 0:04:30] [#]} 26. Rc1 $1 {[%emt 0:15:30]} fxe5 {[%emt 0:03:30]} 27. fxe5 {[%emt 0:00:00]} Rae8 {[%emt 0:00:30]} 28. Rc7+ {[%emt 0:01:00]} Kd8 {[%emt 0:00:00]} 29. Rxh7 {[%emt 0:03:30]} Rxe5 {[%emt 0:00:00]} 30. Rxe5 {[%emt 0:00:30]} Rxe5 {[%emt 0:00:30]} 31. Rxa7 {[%emt 0:00:30]} Re6 {[%emt 0:00:00]} 32. d7 {[%emt 0:00:30]} Rd6 {[%emt 0:08:00]} 33. Kf2 {[%emt 0:01:30]} b5 {[%emt 0:00:30]} 34. Kf3 {[%emt 0:02:30]} b4 {[%emt 0:01:30]} 35. h4 {[%emt 0:02:30]} b3 {[%emt 0:04:30]} 36. axb3 {[%emt 0:00:30]} Rd3+ {[%emt 0:00:00]} 37. Kf4 {[%emt 0:00:30]} Rxb3 {[%emt 0:00:00]} 38. g4 {[%emt 0:00:30]} Rh3 {[%emt 0:00:30]} 39. Kg5 {[%emt 0:00:30]} Rg3 {[%emt 0:00:30]} 40. Ra6 {[%emt 0:01:30]} Kxd7 {[%emt 0:00:30]} 41. Rxg6 {[%emt 0:00:00]} Ke7 {[%emt 0:00:00]} 42. h5 {[%emt 0:00:00]} Kf7 {[%emt 0:00:00]} 43. Kh6 {[%emt 0:00:30]} Rg1 {[%emt 0:00:30]} 44. g5 {[%emt 0:00:30]} Rh1 {[%emt 0:00:30]} 45. Ra6 {[%emt 0:00:00]} 1-0

[Event "TUR-ch Youth U17 2019"]
[Site "Belek"]
[Date "2019.01.21"]
[Round "3"]
[White "Ozgur, Isa"]
[Black "Cansun, Can Alp"]
[Result "1-0"]
[ECO "A37"]
[WhiteElo "2090"]
[BlackElo "2174"]
[Annotator "NA"]
[PlyCount "161"]
[EventDate "2019.01.20"]
[EventType "swiss"]
[EventCountry "TUR"]
[SourceTitle "playchess.com"]
[Source "ChessBase"]
[SourceQuality "1"]
[TimeControl "5400+30"]

1. c4 {[%emt 0:00:30]} c5 {[%emt 0:02:30]} 2. Nc3 {[%emt 0:01:30]} Nc6 {[%emt 0:00:30]} 3. Nf3 {[%emt 0:00:30]} g6 {[%emt 0:00:30]} 4. g3 {[%emt 0:00:30]} Bg7 {[%emt 0:00:30]} 5. Bg2 {[%emt 0:02:30]} e6 {[%emt 0:02:30]} 6. d3 {[%emt 0:00:00]} Nge7 {[%emt 0:00:30]} 7. Bg5 {[%emt 0:00:00] A37: Symmetrical English vs ...g6: 4 Bg2 Bg7 5 Nf3} (7. Bd2 b6 8. Qc1 h6 9. O-O Bb7 10. a3 d6 11. Rb1 Qd7 12. b4 Rd8 13. Nb5 Ba8 14. Rd1 g5 15. bxc5 bxc5 {½-½ (55) Bachmann,A (2642)-Bologan,V (2654) Philadelphia 2016}) 7... d6 {[%emt 0:01:30]} 8. Rb1 {[%emt 0:01:30]} h6 {[%emt 0:01:30]} 9. Bd2 {[%emt 0:00:30]} O-O {[%emt 0:03:30]} 10. Qc1 {[%emt 0:00:30]} Kh7 {[%emt 0:01:30]} 11. h4 {[%emt 0:04:30]} Nd4 {[%emt 0:05:30]} 12. O-O $146 {[%emt 0:04:30]} ({Predecessor:} 12. Nh2 Rb8 13. h5 g5 14. e3 {0-1 (53) Wegerer,F (2211)-Baumegger,S (2405) Frohnleiten 1999}) 12... Bd7 {[%emt 0:02:30]} 13. Nxd4 {[%emt 0:12:30]} ({White should try} 13. b4 $11) 13... cxd4 {[%emt 0:00:30]} 14. Ne4 {[%emt 0:01:30]} Bc6 {[%emt 0:04:30]} 15. Bb4 {[%emt 0:10:30]} Nc8 {[%emt 0:10:30]} 16. Ba3 {[%emt 0:09:30]} f5 {[%emt 0:03:30]} 17. Nd2 {[%emt 0:00:30]} e5 {[%emt 0:04:30]} 18. e3 {[%emt 0:03:30]} dxe3 {[%emt 0:03:30]} 19. fxe3 {[%emt 0:00:30]} f4 {[%emt 0:04:30]} 20. Qe1 {[%emt 0:05:30]} Ne7 {[%emt 0:04:30]} 21. Ne4 {[%emt 0:02:30]} Nf5 {[%emt 0:04:30]} 22. exf4 {[%emt 0:06:30]} exf4 {[%emt 0:05:30]} 23. Rxf4 {[%emt 0:01:30]} Bd4+ {[%emt 0:04:30]} 24. Kh1 {[%emt 0:01:30]} Be5 {[%emt 0:01:30]} 25. Rf3 {[%emt 0:01:30]} Qe7 {[%emt 0:17:46]} 26. b3 {[%emt 0:05:30]} Rae8 {[%emt 0:04:21]} 27. Bb2 {[%emt 0:05:19]} Nxg3+ {[%emt 0:02:03]} 28. Rxg3 {[%emt 0:01:33]} Qxh4+ {[%emt 0:00:02]} 29. Rh3 {[%emt 0:01:39]} Qxe1+ {[%emt 0:00:02]} 30. Rxe1 {[%emt 0:00:00]} Bxb2 {[%emt 0:00:03]} 31. Ng5+ {[%emt 0:01:59]} Kg7 {[%emt 0:01:59]} 32. Ne6+ {[%emt 0:00:48]} Kg8 {[%emt 0:00:58]} 33. Bd5 {[%emt 0:04:30]} Rf6 {[%emt 0:03:35]} 34. Rxh6 {[%emt 0:00:28]} Bxd5+ {[%emt 0:00:38]} 35. cxd5 {[%emt 0:00:11]} Re7 {[%emt 0:00:31]} 36. Re2 {[%emt 0:00:46]} Bc1 {[%emt 0:00:18]} 37. Rh3 {[%emt 0:01:07]} Rf1+ {[%emt 0:00:33]} 38. Kg2 {[%emt 0:00:32]} Rd1 {[%emt 0:00:38]} 39. Rg3 {[%emt 0:05:10]} g5 {[%emt 0:00:05]} 40. Rc2 {[%emt 0:01:19]} Rd2+ {[%emt 0:00:55]} 41. Rxd2 {[%emt 0:00:53]} Bxd2 {[%emt 0:00:01]} 42. Kf3 {[%emt 0:00:15]} Rf7+ {[%emt 0:01:24]} 43. Ke2 {[%emt 0:00:07]} Bc1 {[%emt 0:00:04]} 44. Rg1 {[%emt 0:00:24]} Bf4 {[%emt 0:00:32]} 45. Nxf4 {[%emt 0:00:42]} Rxf4 {[%emt 0:00:30]} 46. Rxg5+ {[%emt 0:00:30]} Kf7 {[%emt 0:00:00]} 47. Ke3 {[%emt 0:00:16]} Rh4 $14 {[%emt 0:00:00]} 48. Rf5+ {[%emt 0:01:16]} Ke7 {[%emt 0:00:23]} 49. Rf4 {[%emt 0:00:30]} Rh2 {[%emt 0:00:30]} 50. a4 {[%emt 0:01:41]} b6 {[%emt 0:01:04]} 51. Kd4 {[%emt 0:00:43]} Rc2 {[%emt 0:01:10]} 52. Rh4 {[%emt 0:00:30]} Kd8 {[%emt 0:00:24]} 53. Rh7 {[%emt 0:01:15]} a6 {[%emt 0:00:01]} 54. Rb7 {[%emt 0:00:00]} b5 {[%emt 0:00:20]} 55. axb5 {[%emt 0:00:20]} axb5 {[%emt 0:00:02]} 56. Rxb5 {[%emt 0:00:10]} Kc7 {[%emt 0:00:05]} 57. Rb4 {[%emt 0:00:50]} Rb2 {[%emt 0:00:11]} 58. Rc4+ {[%emt 0:00:21]} Kd7 {[%emt 0:00:31]} 59. Kc3 {[%emt 0:00:20]} Ra2 {[%emt 0:00:37]} 60. Kb4 {[%emt 0:01:03]} Ra8 {[%emt 0:01:07]} 61. Rc6 {[%emt 0:00:21]} Rb8+ {[%emt 0:00:14]} 62. Kc4 {[%emt 0:00:09]} Rh8 {[%emt 0:00:22]} 63. b4 {[%emt 0:00:38]} Rh4+ {[%emt 0:00:06]} 64. d4 {[%emt 0:00:35]} Rh1 {[%emt 0:00:18]} 65. b5 {[%emt 0:00:34]} Rc1+ {[%emt 0:00:14]} 66. Kb4 {[%emt 0:00:10]} Rb1+ {[%emt 0:00:54]} 67. Ka5 {[%emt 0:00:14]} Ra1+ {[%emt 0:00:05]} 68. Kb6 {[%emt 0:00:19]} Ra4 {[%emt 0:00:02]} 69. Rc7+ {[%emt 0:00:28]} Kd8 {[%emt 0:00:01]} 70. Ra7 {[%emt 0:00:27]} Rxd4 {[%emt 0:00:25]} 71. Kc6 {[%emt 0:00:10]} Rc4+ {[%emt 0:00:42]} 72. Kxd6 {[%emt 0:00:17]} Kc8 {[%emt 0:00:02]} 73. b6 {[%emt 0:01:23]} Rb4 {[%emt 0:00:08]} 74. Rc7+ {[%emt 0:00:45]} Kb8 {[%emt 0:00:07]} 75. Kc5 {[%emt 0:00:23]} Rh4 {[%emt 0:00:46]} 76. d6 {[%emt 0:00:22]} Rh5+ {[%emt 0:00:05]} 77. Kc6 {[%emt 0:00:06]} Rh6 {[%emt 0:00:18]} 78. Rg7 {[%emt 0:00:16]} Rh8 {[%emt 0:00:31]} 79. b7 {[%emt 0:00:20]} Rf8 {[%emt 0:00:50]} 80. Rg6 {[%emt 0:00:20]} Rh8 {[%emt 0:01:07]} 81. Re6 {[%emt 0:00:23]} 1-0

[Event "TUR-ch Youth U17 2019"]
[Site "Belek"]
[Date "2019.01.21"]
[Round "3"]
[White "Yungucu, Arda"]
[Black "Acar, Utku Cengiz"]
[Result "1/2-1/2"]
[ECO "A07"]
[WhiteElo "1943"]
[BlackElo "2078"]
[Annotator "NA"]
[PlyCount "104"]
[EventDate "2019.01.20"]
[EventType "swiss"]
[EventCountry "TUR"]
[SourceTitle "playchess.com"]
[Source "ChessBase"]
[SourceQuality "1"]
[TimeControl "5400+30"]

1. Nf3 {[%emt 0:00:30]} Nf6 {[%emt 0:00:30]} 2. g3 {[%emt 0:00:30]} d5 {[%emt 0:00:30]} 3. Bg2 {[%emt 0:00:30]} Bf5 {[%emt 0:00:30]} 4. O-O {[%emt 0:00:30]} e6 {[%emt 0:00:00]} 5. d3 {[%emt 0:00:30]} c6 {[%emt 0:00:00]} 6. Nbd2 {[%emt 0:00:30]} Be7 {[%emt 0:01:30]} 7. Qe1 {[%emt 0:03:30]} h6 {[%emt 0:06:30]} 8. e4 {[%emt 0:00:30]} Bh7 {[%emt 0:00:30]} 9. Qe2 {[%emt 0:00:30]} a5 {[%emt 0:08:30] A07: Réti Opening: New York and Capablanca Systems} (9... O-O 10. Re1 a5 11. a4 Na6 12. Nb3 dxe4 13. dxe4 Bxe4 14. Be3 Nb4 15. Red1 Qc8 16. c3 Nc2 17. Rac1 Nxe3 18. Qxe3 Qc7 {0-1 (39) Hasangatin,R (2505)-Alekseev,E (2636) Sochi 2016}) 10. Ne1 {[%emt 0:13:30]} O-O {[%emt 0:10:30] LiveBook: 3 Games} 11. f4 {[%emt 0:01:30]} dxe4 {[%emt 0:08:30]} 12. dxe4 {[%emt 0:04:30]} Na6 {[%emt 0:01:30]} 13. Kh1 $146 {[%emt 0:06:30]} ({Predecessor:} 13. Nd3 Nb4 14. Nxb4 axb4 15. e5 Nd5 16. Ne4 Ra4 17. g4 Qb6+ 18. Kh1 {0-1 (26) De Valliere,S-Linna,A corr 1993}) 13... Nc5 {[%emt 0:04:30]} 14. Nd3 {[%emt 0:01:30]} a4 {[%emt 0:09:30]} 15. Nxc5 {[%emt 0:08:30]} Bxc5 {[%emt 0:00:00]} 16. e5 {[%emt 0:00:00]} Nd5 {[%emt 0:08:00]} 17. Ne4 {[%emt 0:01:00]} Be7 {[%emt 0:02:30]} 18. a3 {[%emt 0:00:30]} b5 {[%emt 0:05:30]} 19. g4 {[%emt 0:03:30]} Qc7 {[%emt 0:04:30]} 20. Ng3 {[%emt 0:10:30]} Bh4 {[%emt 0:03:30]} 21. Ne4 {[%emt 0:03:30]} Be7 {[%emt 0:03:30]} 22. Bd2 {[%emt 0:03:30]} Rfe8 {[%emt 0:00:30]} 23. Be1 {[%emt 0:01:30]} f5 {[%emt 0:05:51]} 24. exf6 {[%emt 0:02:30]} Nxf6 {[%emt 0:00:02]} 25. Bg3 {[%emt 0:01:30]} Nxe4 {[%emt 0:03:05]} 26. Bxe4 {[%emt 0:01:30]} Bxe4+ {[%emt 0:00:30]} 27. Qxe4 {[%emt 0:00:30]} Bf6 {[%emt 0:00:30]} 28. c3 {[%emt 0:00:30]} Qb6 {[%emt 0:00:30]} 29. h4 {[%emt 0:00:30]} Qc5 {[%emt 0:00:30]} 30. g5 {[%emt 0:00:30]} Bd8 {[%emt 0:00:30]} 31. Qg6 {[%emt 0:00:30]} Re7 {[%emt 0:00:30]} 32. f5 {[%emt 0:00:30]} Qd5+ {[%emt 0:00:30]} 33. Kh2 {[%emt 0:00:30]} exf5 {[%emt 0:00:30]} 34. Rae1 {[%emt 0:00:30]} Raa7 {[%emt 0:00:30]} 35. gxh6 {[%emt 0:00:30]} Qd2+ {[%emt 0:00:30]} 36. Kh3 {[%emt 0:00:30]} Qxh6 {[%emt 0:00:30]} 37. Qxh6 {[%emt 0:00:30]} gxh6 {[%emt 0:00:30]} 38. Rxe7 {[%emt 0:00:30]} Rxe7 {[%emt 0:00:30]} 39. Rxf5 {[%emt 0:00:30]} Re2 {[%emt 0:00:30]} 40. h5 {[%emt 0:00:30]} Bg5 {[%emt 0:00:30]} 41. Rc5 {[%emt 0:00:30]} Rxb2 {[%emt 0:00:30]} 42. Rxc6 $19 {[%emt 0:00:30]} Kf7 {[%emt 0:00:30]} 43. Bd6 {[%emt 0:00:30]} Ke6 {[%emt 0:00:30]} 44. Bb4+ {[%emt 0:00:30]} Kf5 {[%emt 0:00:30]} 45. Kg3 {[%emt 0:00:30]} Ke4 {[%emt 0:00:30]} 46. Re6+ {[%emt 0:00:30]} Kd5 {[%emt 0:00:30]} 47. Rb6 {[%emt 0:00:30]} Ke4 {[%emt 0:00:30]} 48. Re6+ {[%emt 0:00:30]} Kd5 {[%emt 0:00:30]} 49. Rd6+ {[%emt 0:00:30]} Ke4 {[%emt 0:00:30]} 50. Rd4+ {[%emt 0:29:15]} Kf5 {[%emt 0:11:58]} 51. Kf3 {[%emt 0:00:43]} Rd2 {[%emt 0:00:53]} 52. Rxd2 {[%emt 0:00:49]} Ke5 {[%emt 0:00:49]} 1/2-1/2

[Event "TUR-ch Youth U17 2019"]
[Site "Belek"]
[Date "2019.01.22"]
[Round "4"]
[White "Acar, Utku Cengiz"]
[Black "Ozgur, Isa"]
[Result "1/2-1/2"]
[ECO "B39"]
[WhiteElo "2078"]
[BlackElo "2090"]
[Annotator "NA"]
[PlyCount "83"]
[EventDate "2019.01.20"]
[EventType "swiss"]
[EventCountry "TUR"]
[SourceTitle "playchess.com"]
[Source "ChessBase"]
[SourceQuality "1"]
[TimeControl "5400+30"]

1. e4 c5 2. Nf3 Nc6 3. d4 cxd4 4. Nxd4 g6 5. c4 Bg7 6. Be3 Nf6 7. Nc3 Ng4 8. Qxg4 Nxd4 9. Qd1 Ne6 10. Rc1 b6 11. Be2 Bb7 12. f3 O-O 13. O-O d6 14. Qd2 Rc8 15. Nd5 Nc5 16. b4 Nd7 17. Rfd1 e6 18. Nc3 Be5 {[%emt 0:53:00]} 19. Nb5 {[%emt 1:13:30]} d5 {[%emt 0:03:30]} 20. f4 {[%emt 0:03:30]} Bb8 {[%emt 0:02:30]} 21. Nc3 {[%emt 0:11:25]} Nf6 {[%emt 0:02:30]} 22. e5 {[%emt 0:01:30]} Ne4 {[%emt 0:01:30]} 23. Nxe4 {[%emt 0:02:05]} dxe4 {[%emt 0:00:30]} 24. Qxd8 {[%emt 0:00:40]} Rfxd8 {[%emt 0:02:30]} 25. Kf2 {[%emt 0:00:12]} f6 {[%emt 0:01:30]} 26. Bd4 {[%emt 0:03:21]} fxe5 {[%emt 0:05:30]} 27. fxe5 {[%emt 0:01:25]} Kf7 {[%emt 0:04:30]} 28. Ke3 {[%emt 0:00:40]} Ke7 {[%emt 0:01:30]} 29. h4 {[%emt 0:03:19]} Rf8 {[%emt 0:05:30]} 30. g4 {[%emt 0:01:22]} Rf7 {[%emt 0:03:41]} 31. Rf1 {[%emt 0:00:41]} Rxf1 {[%emt 0:02:35]} 32. Rxf1 {[%emt 0:00:17]} Rf8 {[%emt 0:00:22]} 33. Rxf8 {[%emt 0:00:19]} Kxf8 {[%emt 0:00:20]} 34. Bf1 {[%emt 0:00:18]} Bc7 {[%emt 0:00:19]} 35. c5 {[%emt 0:01:46]} Bd8 {[%emt 0:01:36]} 36. cxb6 {[%emt 0:01:03]} axb6 {[%emt 0:01:17]} 37. Bg2 {[%emt 0:00:32]} b5 {[%emt 0:01:31]} 38. Bc5+ {[%emt 0:00:25]} Kf7 {[%emt 0:00:56]} 39. Bxe4 {[%emt 0:00:40]} Bxe4 {[%emt 0:00:30]} 40. Kxe4 {[%emt 0:00:30]} Bxh4 {[%emt 0:00:12]} 41. Be3 {[%emt 0:00:28]} Be7 {[%emt 0:02:52]} 42. Bd2 {[%emt 0:00:26]} 1/2-1/2

[Event "TUR-ch Youth U17 2019"]
[Site "Belek"]
[Date "2019.01.22"]
[Round "4"]
[White "Kirilmaz, Emre"]
[Black "Aytekin, Murat Eren"]
[Result "0-1"]
[ECO "A48"]
[WhiteElo "2035"]
[BlackElo "2163"]
[Annotator "NA"]
[PlyCount "94"]
[EventDate "2019.01.20"]
[EventType "swiss"]
[EventCountry "TUR"]
[SourceTitle "playchess.com"]
[Source "ChessBase"]
[SourceQuality "1"]
[TimeControl "5400+30"]

1. d4 g6 {[%emt 0:00:30]} 2. e4 {[%emt 0:01:30]} Bg7 {[%emt 0:00:00]} 3. c3 {[%emt 0:00:30]} d6 {[%emt 0:00:00]} 4. Bg5 {[%emt 0:00:00]} h6 {[%emt 0:02:30]} 5. Bh4 {[%emt 0:00:00]} Nf6 {[%emt 0:01:30]} 6. Nd2 {[%emt 0:00:30]} O-O {[%emt 0:01:30]} 7. Ngf3 {[%emt 0:00:30]} Nc6 {[%emt 0:02:30]} 8. Bc4 {[%emt 0:01:30]} Nxe4 {[%emt 0:07:30]} 9. Nxe4 {[%emt 0:01:30]} d5 {[%emt 0:00:30]} 10. Bd3 {[%emt 0:00:30]} dxe4 {[%emt 0:00:30]} 11. Bxe4 {[%emt 0:00:00]} f5 {[%emt 0:08:30]} 12. Bc2 {[%emt 0:44:00]} g5 {[%emt 0:06:30]} 13. Bxg5 {[%emt 0:00:30]} hxg5 {[%emt 0:00:30]} 14. Nxg5 {[%emt 0:00:30]} Qe8 {[%emt 0:01:30]} 15. Bb3+ {[%emt 0:04:30]} e6 {[%emt 0:01:30]} 16. Qe2 {[%emt 0:02:30]} Nd8 {[%emt 0:06:30]} 17. h4 $11 {[%emt 0:06:30]} Qg6 18. f4 c6 19. O-O-O a5 {[%emt 0:52:30]} 20. Rdg1 {[%emt 1:14:00]} a4 {[%emt 0:02:30]} 21. Bc2 {[%emt 0:02:30]} c5 {[%emt 0:01:30]} 22. g4 {[%emt 0:00:30]} cxd4 {[%emt 0:01:30]} 23. Rg3 {[%emt 0:01:30]} dxc3 {[%emt 0:07:30]} 24. gxf5 {[%emt 0:04:15]} exf5 {[%emt 0:01:30]} 25. Rhg1 {[%emt 0:00:39]} cxb2+ {[%emt 0:05:30]} 26. Kb1 {[%emt 0:00:20]} Qh6 {[%emt 0:00:30]} 27. Qe7 {[%emt 0:08:32]} Qf6 {[%emt 0:03:30]} 28. Qc7 {[%emt 0:01:40]} Be6 {[%emt 0:01:30]} 29. Nh7 {[%emt 0:00:29]} Bxa2+ {[%emt 0:00:30]} 30. Kxa2 {[%emt 0:00:00]} b1=Q+ {[%emt 0:00:00]} 31. Rxb1 {[%emt 0:00:32]} Kxh7 {[%emt 0:01:00]} 32. Bxf5+ {[%emt 0:03:16]} Kh8 {[%emt 0:00:00]} 33. Rg5 {[%emt 0:00:46]} Qf7+ {[%emt 0:03:00]} 34. Qxf7 {[%emt 0:00:03]} Nxf7 {[%emt 0:00:00]} 35. Rh5+ {[%emt 0:00:41]} Nh6 {[%emt 0:00:00]} 36. Rb6 {[%emt 0:00:50]} Rxf5 {[%emt 0:00:30]} 37. Rbxh6+ {[%emt 0:00:30]} Bxh6 {[%emt 0:00:30]} 38. Rxf5 {[%emt 0:00:00]} Kg7 {[%emt 0:03:30]} 39. Rb5 {[%emt 0:00:33]} Ra7 {[%emt 0:00:30]} 40. f5 {[%emt 0:00:00]} Be3 {[%emt 0:00:30]} 41. Re5 {[%emt 0:01:09]} Bf4 {[%emt 0:00:30]} 42. Re4 {[%emt 0:00:31]} Bd6 {[%emt 0:00:30]} 43. h5 {[%emt 0:01:12]} b5 {[%emt 0:00:30]} 44. Re6 {[%emt 0:00:46]} Bc5 {[%emt 0:01:30]} 45. Rg6+ {[%emt 0:01:43]} Kh7 {[%emt 0:00:30]} 46. Rc6 {[%emt 0:00:30]} Bd4 {[%emt 0:00:30]} 47. Rd6 {[%emt 0:00:30]} Bc3 {[%emt 0:00:30]} 0-1

[Event "TUR-ch Youth U17 2019"]
[Site "Belek"]
[Date "2019.01.22"]
[Round "4"]
[White "Guncan, Berke"]
[Black "Onur, Cem"]
[Result "1/2-1/2"]
[ECO "B44"]
[WhiteElo "2016"]
[BlackElo "1885"]
[Annotator "NA"]
[PlyCount "132"]
[EventDate "2019.01.20"]
[EventType "swiss"]
[EventCountry "TUR"]
[SourceTitle "playchess.com"]
[Source "ChessBase"]
[SourceQuality "1"]
[TimeControl "5400+30"]

1. e4 c5 {[%emt 0:00:30]} 2. Nf3 {[%emt 0:01:30]} Nc6 {[%emt 0:00:30]} 3. d4 {[%emt 0:00:30]} cxd4 {[%emt 0:00:30]} 4. Nxd4 {[%emt 0:00:00]} e6 {[%emt 0:05:30]} 5. c4 {[%emt 0:00:00]} Nf6 {[%emt 0:00:00]} 6. Nc3 {[%emt 0:00:30]} Bb4 {[%emt 0:00:00]} 7. Nxc6 {[%emt 0:00:30]} dxc6 {[%emt 0:02:30]} 8. Qxd8+ {[%emt 0:00:30]} Kxd8 {[%emt 0:00:30]} 9. e5 {[%emt 0:00:00]} Ne4 {[%emt 0:07:30] B44: Sicilian: Taimanov: 5 Nb5} 10. a3 {[%emt 0:00:00]} Bxc3+ {[%emt 0:06:30]} 11. bxc3 {[%emt 0:00:30]} Ke7 $146 {[%emt 0:30:30]} ({Predecessor:} 11... Kc7 12. Be3 b6 13. Bd3 Nc5 14. Bxc5 bxc5 15. O-O-O Rb8 16. Kc2 Bd7 17. h4 {½-½ (30) Oparin,G (2609)-Kuzubov,Y (2647) Linares 2018}) 12. a4 {[%emt 0:06:00]} b6 {[%emt 0:01:30]} 13. Ba3+ {[%emt 0:01:30]} Nc5 {[%emt 0:00:30]} 14. a5 {[%emt 0:01:30]} Bd7 {[%emt 0:02:30]} 15. Be2 {[%emt 0:01:30]} Rhb8 {[%emt 0:01:30]} 16. O-O {[%emt 0:01:30]} Ke8 {[%emt 0:01:30]} 17. Rfb1 {[%emt 0:06:30]} Na4 {[%emt 0:12:30]} 18. Bd6 {[%emt 0:11:30]} Nxc3 {[%emt 0:00:30]} 19. Bxb8 $16 {[%emt 0:00:30]} Nxe2+ 20. Kf1 Nc3 21. Rc1 Ne4 {[%emt 1:23:17]} 22. Bd6 {[%emt 0:41:00]} bxa5 {[%emt 0:00:30]} 23. Ke2 {[%emt 0:00:30]} Bc8 {[%emt 0:00:30]} 24. Rxa5 {[%emt 0:00:30]} a6 {[%emt 0:05:50]} 25. Ke3 {[%emt 0:02:30]} Nxd6 {[%emt 0:00:45]} 26. exd6 {[%emt 0:00:30]} Kd7 {[%emt 0:00:03]} 27. Rd1 {[%emt 0:01:30]} Rb8 {[%emt 0:00:29]} 28. c5 {[%emt 0:00:30]} Rb3+ {[%emt 0:00:49]} 29. Rd3 {[%emt 0:00:30]} Rb2 {[%emt 0:00:06]} 30. Rd2 {[%emt 0:00:00]} Rb4 {[%emt 0:00:30]} 31. Kd3 {[%emt 0:01:00]} Bb7 {[%emt 0:00:08]} 32. Kc3 {[%emt 0:01:30]} Rb5 {[%emt 0:00:25]} 33. Rxb5 {[%emt 0:00:30]} cxb5 {[%emt 0:00:01]} 34. f3 {[%emt 0:00:30]} Bc8 {[%emt 0:06:45]} 35. Kb4 {[%emt 0:00:00]} Kc6 {[%emt 0:00:17]} 36. Ka5 {[%emt 0:00:00]} Bd7 {[%emt 0:00:32]} 37. Rc2 {[%emt 0:00:30]} Bc8 {[%emt 0:00:07]} 38. Kb4 {[%emt 0:00:30]} Bd7 {[%emt 0:01:10]} 39. Rd2 {[%emt 0:00:30]} a5+ {[%emt 0:00:28]} 40. Kxa5 {[%emt 0:00:00]} Kxc5 {[%emt 0:00:17]} 41. Ka6 {[%emt 0:00:00]} Kc6 {[%emt 0:00:16]} 42. Ka7 {[%emt 0:03:30]} b4 {[%emt 0:00:10]} 43. Kb8 {[%emt 0:00:00]} b3 {[%emt 0:00:28]} 44. h3 {[%emt 0:00:00]} e5 {[%emt 0:01:30]} 45. Rd3 {[%emt 0:02:30]} b2 {[%emt 0:00:47]} 46. Rb3 {[%emt 0:00:00]} Kxd6 {[%emt 0:00:15]} 47. Rxb2 {[%emt 0:00:00]} Bc6 {[%emt 0:00:46]} 48. Kc8 {[%emt 0:00:30]} f5 {[%emt 0:00:11]} 49. Rd2+ {[%emt 0:00:30]} Bd5 {[%emt 0:00:24]} 50. Kd8 {[%emt 0:00:30]} e4 {[%emt 0:00:14]} 51. f4 {[%emt 0:04:30]} Kc5 {[%emt 0:00:14]} 52. Ke7 {[%emt 0:00:00]} e3 {[%emt 0:00:13]} 53. Rd3 {[%emt 0:16:00]} e2 {[%emt 0:01:28]} 54. Re3 {[%emt 0:00:00]} Bc4 {[%emt 0:00:25]} 55. Kf8 {[%emt 0:00:00]} Kd4 {[%emt 0:00:59]} 56. Re7 {[%emt 0:00:30]} Bd3 {[%emt 0:00:35]} 57. Rxe2 {[%emt 0:00:30]} Bxe2 {[%emt 0:00:30]} 58. Kxg7 {[%emt 0:00:00]} h5 {[%emt 0:00:00]} 59. Kg6 {[%emt 0:00:00]} Ke4 {[%emt 0:00:21]} 60. Kg5 {[%emt 0:00:30]} Bd1 {[%emt 0:00:23]} 61. g3 {[%emt 0:00:00]} Be2 {[%emt 0:02:00]} 62. Kh4 {[%emt 0:00:00]} Bd1 {[%emt 0:04:07]} 63. Kg5 {[%emt 0:00:30]} Bf3 {[%emt 0:00:54]} 64. Kh4 {[%emt 0:00:00]} Bg2 {[%emt 0:00:00]} 65. g4 {[%emt 0:00:00]} Kxf4 {[%emt 0:01:09]} 66. gxf5 {[%emt 0:00:30]} Kxf5 {[%emt 0:00:00]} 1/2-1/2